{"text_format":"2","workbook":"xlsx","n_sheets":2,"sheets":["TEER_1ºC","TEER_2ºC"],"not_rendered":{"charts":0,"images":1,"macros":0,"external_links":0,"defined_names":1,"comments":0,"pivot_tables":0},"unopened":[],"bounds":{"document_bytes":16777216,"sheet_cells":100000,"run_cost":"one","rows_first":2000,"rows_last":500,"rows_between":2000,"halvings":0,"cell_chars":16384,"cell_head_chars":4096},"cells_cut":0,"cells_raw":0,"read":"whole","date_system":"1900"}

{"sheet":"TEER_1ºC","index":0,"n_rows":24,"n_cols":8,"rows_kept":24,"cut":false,"hidden":false,"merged":[]}
[]
[]
[null,null,"TEER 2014/2015","1º Ciclo do Ensino Básico"]
[]
[]
["Concelho","Escola","Nome do aluno","Teórica (cot)","Prática (nº de falhas)","Prática (cotação)","Total","Posição Final"]
["Santana","EB1PE Caminho Chão","João Francisco Jesus",80,null,100,{"$f":"D7+F7","v":180}]
["Santana","EB1PE Caminho Chão","Alexandra Moniz",67,null,100,167]
["Santa Cruz","EB1PE Clemente Tavares","Diogo Tomás Quintal",91,null,100,191,"3º LUGAR"]
["Santa Cruz","EB1PE Clemente Tavares","Carlota Oliveira Reis",93,null,100,193,"2º LUGAR"]
["Calheta","EB1PE Estreito da Calheta","Sara Agrela Pestana",86,null,100,186]
["Calheta","EB1PE Ladeira e Lamaceiros","Fábio Rodrigues Moniz",80,null,100,180]
["Ponta do Sol","EB1PE Carvalhal e Carreira","Roberto Carlos Rodrigues",63,null,100,163]
["Ponta do Sol","EB1PE Lombo dos Canhas","João manuel Coelho ",77,null,100,177]
["Câmara de Lobos","EB1PE Ribeiro D’Alforra","Luís Rodrigo Fragoeiro",80,null,95,175]
["Câmara de Lobos","EB1PE do Pedregal","Rafael Leonardo Silva",81,null,100,181]
["Ribeira Brava","EB1PE Ribeira Brava","José Pedro Basílio ",86,null,100,186]
["Ribeira Brava","EB1PE Lugar da Serra","Hélder Tómas Sousa",64,null,100,164]
["Machico","EB1/PE Santo António da Serra","Luís Miguel Vieira",78,null,100,178]
["Machico","EB1PE Engº Luís Santos Costa","Ana Leonor Prata ",97,null,100,197,"1º LUGAR"]
["Funchal","EB1/PE Ribeiro Domingos Dias","Pedro Afonso Gouveia ",87,null,100,187]
["Funchal","Externato de São João","Luís Miguel Pires",87,null,100,187]
["Porto Santo","EB1/PE do Campo de Baixo","Afonso Estrela da Silva",80,null,100,180]
["Porto Santo","EB1/PE do Campo de Baixo","Wilson Fernandes ",81,null,100,181]

{"sheet":"TEER_2ºC","index":1,"n_rows":29,"n_cols":7,"rows_kept":29,"cut":false,"hidden":false,"merged":[[0,0,1,0]]}
[null,"TEER 2014/2015","2º Ciclo do Ensino Básico"]
[]
["Escola","Nome do aluno","Teórica (cot)","Prática (nº de falhas)","Prática (cotação)","Total","Posição Final"]
["Lucinda Andrade","João Hugo Mendes",95,0,100,{"$f":"C4+E4","v":195}]
["Francisco M S Barreto ","Diogo António Pombo",100,null,100,200,"1º LUGAR"]
["EBSDr. Francisco Freitas Branco","João Carlos Góis ",95,null,100,195]
["Ângelo Augusto da Silva ","Tiago Henrique Abreu ",90,null,100,190]
["Estreito de Câmara de Lobos ","João Manuel Reis ",100,null,100,200]
["Machico","Ana Leonor Catanho ",100,null,100,200]
["Caniço ","André Spinola ",85,null,100,185]
["São Jorge ","Érica Carolina Nascimento",90,null,90,180]
["Gonçalves Zarco ","Diogo Ramos de Sousa",100,null,100,200,"3º LUGAR"]
["Alfredo Ferreira Nóbrega Júnior ","Rafael Teixeira Freitas",95,null,95,190]
["Santo António ","João Rodrigo Araújo",90,null,100,190]
["Santa Cruz ","Francisca Rodrigues Freitas",95,null,100,195]
["Eduardo Brazão de Castro","Miguel Rafael Alves Rodrigues",95,null,100,195]
["Carmo - Luís Maurílio Silva Dantas","Alex Correia ",95,null,90,185]
["Ponta do Sol","Vitor Emanuel Pontes",90,null,100,190]
["Calheta","Sérgio Daniel Gonçalves",95,null,95,190]
["Curral das Freiras","Bernardo Vicente Neves",100,null,95,195]
["Santana","António Rodrigo Freitas",95,null,95,190]
[" Torre","Afonso Jesus Abreu ",95,null,100,195]
["Padre Manuel Álvares ","Mateus Franco Sequeira",100,null,100,200]
["Bartolomeu Perestrelo ","Rafaela da Silva Castanheira",90,null,100,190]
["Horácio Bento Gouveia","Ana Gonçalves Araújo ",100,null,100,200,"2º LUGAR "]
["Louros","Rodrigo Correia de Sousa",95,null,100,195]
["Caniçal","Bruno Sousa Nunes",95,null,95,190]
["Cónego JJG Andrade - Campanário","Ricardo José Caires",95,null,100,195]
["Infante D. Henrique ","Rodrigo Afonso Silva",90,null,100,190]